bitfinex/quotes_SOLUSD_20241127
["timestamp","ask_amount","ask_price","bid_price","bid_amount"]
[1732694139952,13.08279369,234.71,234.63,13.08279369]
[1732694140465,13.08279369,234.71,234.61,13.08279369]
[1732694140631,13.08279369,234.67,234.58,13.08279369]
[1732694140837,13.08279369,234.65,234.58,13.08279369]
[1732694141237,13.08279369,234.65,234.57,17.34569369]
[1732694141438,13.08279369,234.65,234.57,13.08279369]
[1732694141439,15.63979369,234.65,234.57,13.08279369]
[1732694141957,20.0,234.66,234.57,13.08279369]
[1732694142164,13.08279369,234.68,234.61,13.08279369]
[1732694143149,13.08279369,234.64,234.55,30.1344]
[1732694143454,13.08279369,234.64,234.55,19.4757]
[1732694144234,20.0,234.66,234.57,4.2631]
[1732694144440,13.08279369,234.65,234.57,4.2631]
[1732694144749,13.08279369,234.62,234.54,13.08279369]
[1732694145245,13.08279369,234.62,234.51,4.2641]
[1732694145432,13.08279369,234.62,234.52,13.08279369]
[1732694145844,13.08279369,234.62,234.53,4.2638]
[1732694146338,13.08279369,234.62,234.54,13.08279369]
[1732694147764,13.08279369,234.62,234.54,17.34629369]
[1732694148240,17.7394,234.69,234.57,13.08279369]
[1732694148449,13.08279369,234.66,234.57,13.08279369]
[1732694149364,13.08279369,234.64,234.57,13.08279369]
[1732694149558,13.08279369,234.64,234.57,17.34579369]
[1732694150077,13.08279369,234.64,234.57,13.08279369]
[1732694150241,13.08279369,234.64,234.57,17.34579369]
[1732694150445,13.08279369,234.64,234.57,4.263]
[1732694152942,13.08279369,234.66,234.57,17.34579369]
[1732694155565,15.63969369,234.66,234.57,17.34579369]
[1732694156269,13.08279369,234.66,234.57,17.34579369]
[1732694158346,8.38142973,234.67,234.58,8.38142973]
[1732694158766,20.0,234.66,234.58,8.38142973]
[1732694158973,8.38142973,234.67,234.58,8.38142973]
[1732694159557,8.38142973,234.67,234.59,4.2627]
[1732694159760,10.93812973,234.67,234.59,4.2627]
[1732694159968,8.38142973,234.67,234.6,8.38142973]
[1732694160573,15.41490494,234.76,234.66,8.38142973]
[1732694160757,10.93732973,234.75,234.68,8.38142973]
[1732694161165,2.5553,234.8,234.68,8.38142973]
[1732694161482,21.6942,234.81,234.61,23.776884]
[1732694161483,8.38142973,234.78,234.7,8.38142973]
[1732694161778,2.5556,234.77,234.7,8.38142973]
[1732694162278,2.5556,234.77,234.7,13.08355644]
[1732694162854,13.08355644,234.78,234.7,13.08355644]
[1732694163654,15.63915644,234.78,234.7,13.08355644]
[1732694164875,13.08355644,234.76,234.68,13.08355644]
[1732694165657,12.58355644,234.76,234.68,17.34455644]
[1732694166372,15.13935644,234.76,234.68,17.34455644]
[1732694167180,12.58355644,234.76,234.68,17.34455644]
[1732694168667,18.71912926,234.84,234.7,13.08355644]
[1732694168668,13.08355644,234.78,234.7,13.08355644]
[1732694169564,20.0,234.81,234.72,13.08355644]
[1732694169871,5.63557282,234.84,234.68,4.261]
[1732694169872,13.08355644,234.84,234.76,13.08355644]
[1732694170191,6.6429,234.89,234.78,13.08355644]
[1732694170192,15.63825644,234.86,234.78,13.08355644]
[1732694172176,13.08355644,234.84,234.76,13.08355644]
[1732694172355,2.5542,234.9,234.78,13.08355644]
[1732694172557,13.08355644,234.88,234.8,13.08355644]
[1732694174177,13.08355644,234.86,234.78,17.34265644]
[1732694175157,15.63825644,234.86,234.78,13.08355644]
[1732694175364,13.08355644,234.82,234.75,16.0566]
[1732694175562,13.08355644,234.8,234.72,17.34375644]
[1732694175959,13.08355644,234.76,234.71,6.0963]
[1732694176262,13.08355644,234.72,234.63,4.262]
[1732694176457,13.08355644,234.72,234.64,13.08355644]
[1732694176666,20.0,234.78,234.66,13.08355644]
[1732694176864,13.08355644,234.74,234.66,13.08355644]
[1732694177061,13.08355644,234.76,234.66,13.08355644]
[1732694177260,13.08355644,234.76,234.67,4.2613]
[1732694178183,13.08355644,234.76,234.68,13.08355644]
[1732694179270,15.7998,234.81,234.7,13.08355644]
[1732694179480,13.08355644,234.79,234.7,13.08355644]
[1732694179786,13.08355644,234.81,234.65,0.63898662]
[1732694179968,13.08355644,234.83,234.76,13.08355644]
[1732694180164,13.08355644,234.85,234.76,13.08355644]
[1732694180567,13.08355644,234.83,234.76,13.08355644]
[1732694180971,13.08355644,234.83,234.74,13.08355644]
[1732694181374,13.08355644,234.83,234.75,4.2598]
[1732694181685,13.08355644,234.79,234.7,17.34415644]
[1732694182969,15.63895644,234.79,234.7,17.34415644]
[1732694184687,13.08355644,234.77,234.68,39.65615644]
[1732694184864,13.08355644,234.75,234.69,4.2609]
[1732694187473,13.08355644,234.75,234.66,13.08355644]
[1732694187679,13.08355644,234.75,234.68,13.08355644]
[1732694188082,13.08355644,234.77,234.68,13.08355644]
[1732694189373,13.08355644,234.77,234.69,4.2609]
[1732694190575,15.63925644,234.77,234.69,4.2609]
[1732694191085,13.08355644,234.75,234.69,4.2609]
[1732694191390,13.08355644,234.77,234.69,4.2609]
[1732694194392,13.08355644,234.77,234.7,13.08355644]
[1732694196173,2.5547,234.86,234.71,15.7848]
[1732694196486,13.08355644,234.81,234.71,28.86835644]
[1732694196678,2.5547,234.86,234.71,28.86835644]
[1732694196996,2.5547,234.86,234.75,13.08355644]
[1732694197199,13.08355644,234.84,234.75,13.08355644]
[1732694197372,13.08355644,234.84,234.77,13.08355644]
[1732694198179,13.08355644,234.84,234.78,4.2593]
[1732694199477,13.08355644,234.84,234.77,13.08355644]
[1732694199874,13.08355644,234.84,234.77,17.34295644]
[1732694200076,13.08355644,234.84,234.77,4.2594]
[1732694200370,8.9402,234.89,234.71,17.34405644]
[1732694200671,13.08355644,234.8,234.71,17.34405644]
[1732694201076,13.08355644,234.8,234.73,13.08355644]
[1732694201672,13.08355644,234.8,234.73,17.34355644]
[1732694202480,13.08355644,234.82,234.73,17.34355644]
[1732694202691,2.555,234.84,234.73,17.34355644]
[1732694202879,13.08355644,234.82,234.73,17.34355644]
[1732694203393,13.08355644,234.82,234.75,13.08355644]
[1732694204195,13.08355644,234.82,234.75,17.34325644]
[1732694204390,13.08355644,234.84,234.75,17.34325644]
[1732694206799,15.63845644,234.84,234.75,17.34325644]
[1732694209122,13.08355644,234.84,234.75,17.34325644]
[1732694209479,13.08355644,234.84,234.75,4.2597]
[1732694209687,15.63845644,234.84,234.75,4.2597]
[1732694209997,13.08355644,234.84,234.75,4.2597]
[1732694210503,13.08355644,234.84,234.76,13.08355644]
[1732694211001,13.08355644,234.84,234.77,4.2594]
[1732694212291,8.36818354,234.85,234.77,12.62758354]
[1732694212986,8.36818354,234.85,234.77,4.2594]
[1732694213587,20.0,234.91,234.77,4.2594]
[1732694213902,20.0,234.91,234.78,8.36818354]
[1732694213903,8.36818354,234.86,234.78,8.36818354]
[1732694214808,8.36818354,234.86,234.79,4.2591]
[1732694216482,8.36818354,234.88,234.79,12.62728354]
[1732694217079,10.92268354,234.88,234.79,12.62728354]
[1732694217300,8.36818354,234.88,234.79,12.62728354]
[1732694218005,10.92268354,234.88,234.79,12.62728354]
[1732694218204,2.5539,234.93,234.81,8.36818354]
[1732694218388,13.028,234.98,234.83,8.36818354]
[1732694218597,4.99999974,235.02,234.83,8.36818354]
[1732694218598,2.5535,234.97,234.85,8.36818354]
[1732694218799,8.36818354,234.95,234.85,8.36818354]
[1732694219194,10.92188354,234.95,234.86,4.2578]
[1732694221185,8.36818354,234.95,234.86,4.2578]
[1732694221511,10.92188354,234.95,234.86,4.2578]
[1732694223807,8.36818354,234.93,234.84,18.90188354]
[1732694225517,10.92208354,234.93,234.84,18.90188354]
[1732694225898,2.5533,234.99,234.84,54.65193416]
[1732694226101,2.5533,234.99,234.92,8.36818354]
[1732694227894,8.9338,235.06,234.94,8.36818354]
[1732694228096,8.36818354,235.03,234.94,8.36818354]
[1732694228316,13.05694065,235.02,234.93,28.55624065]
[1732694228507,13.05694065,235.0,234.93,28.55624065]
[1732694229317,15.61004065,235.0,234.93,28.55624065]
[1732694230115,13.05694065,235.0,234.93,32.81274065]
[1732694230315,13.05694065,235.02,234.93,32.81274065]
[1732694230492,13.05694065,235.02,234.95,13.05694065]
[1732694230688,13.05694065,235.04,234.95,13.05694065]
[1732694231515,15.60974065,235.04,234.95,17.31304065]
[1732694232014,22.5528,235.04,234.95,17.31304065]
[1732694232232,13.05694065,235.03,234.95,17.31304065]
[1732694233295,13.05694065,235.03,234.95,4.2561]
[1732694233494,13.05694065,235.03,234.95,17.31304065]
[1732694234099,13.05694065,235.03,234.95,13.05694065]
[1732694234302,13.05694065,234.99,234.94,6.5823]
[1732694234615,13.05694065,234.99,234.81,5.0]
[1732694234616,13.05694065,234.99,234.89,17.31404065]
[1732694235017,13.05694065,234.99,234.89,4.2571]
[1732694235316,2.5528,235.03,234.88,19.63924065]
[1732694235317,13.05694065,234.95,234.88,19.63924065]
[1732694235897,13.05694065,234.95,234.88,23.89664065]
[1732694236117,20.0,235.0,234.9,13.05694065]
[1732694236328,13.05694065,234.98,234.9,13.05694065]
[1732694237129,15.61034065,234.98,234.9,13.05694065]
[1732694238627,15.61034065,234.98,234.89,4.2572]
[1732694242324,2.5534,234.98,234.88,6.5823]
[1732694242513,13.05694065,234.94,234.87,15.4993]
[1732694243824,13.05694065,234.88,234.83,6.0732]
[1732694244007,13.05694065,234.86,234.83,6.0732]
[1732694248724,13.05694065,234.86,234.81,15.3582]
[1732694248928,13.05694065,234.83,234.77,4.2594]
[1732694249735,13.05694065,234.83,234.76,21.4314]
[1732694249936,13.05694065,234.82,234.76,21.4314]
[1732694250455,8.3711152,234.81,234.76,21.4314]
[1732694250814,10.9263152,234.81,234.76,21.4314]
[1732694253036,8.3711152,234.79,234.72,8.3711152]
[1732694253423,8.3711152,234.79,234.71,15.3582]
[1732694253752,8.3711152,234.77,234.71,15.3582]
[1732694254623,8.3711152,234.75,234.71,15.3582]
[1732694254923,8.3711152,234.76,234.71,15.3582]
[1732694255324,8.3711152,234.77,234.71,15.3582]
[1732694256241,2.555,234.83,234.72,8.3711152]
[1732694256426,8.3711152,234.8,234.72,8.3711152]
[1732694257324,10.9265152,234.8,234.72,8.3711152]
[1732694258226,10.9265152,234.8,234.71,15.3582]
[1732694258227,8.3711152,234.76,234.71,15.3582]
[1732694258949,8.3711152,234.77,234.71,15.3582]
[1732694259148,2.5554,234.8,234.72,8.3711152]
[1732694259364,2.5554,234.8,234.74,8.3711152]
[1732694259531,8.3711152,234.81,234.74,8.3711152]
[1732694259732,10.9263152,234.81,234.74,8.3711152]
[1732694261044,10.9263152,234.81,234.72,12.6313152]
[1732694261845,10.9263152,234.81,234.71,15.3582]
[1732694262032,10.9263152,234.81,234.72,8.3711152]
[1732694262239,8.3711152,234.79,234.72,8.3711152]
[1732694263047,8.3711152,234.79,234.72,12.6314152]
[1732694264136,10.9265152,234.79,234.72,12.6314152]
[1732694264334,10.9265152,234.79,234.71,19.6187]
[1732694264848,8.3711152,234.79,234.71,19.6187]
[1732694265355,10.9266152,234.79,234.71,15.3582]
[1732694265560,8.3711152,234.77,234.71,15.3582]
[1732694266348,10.9266152,234.79,234.71,27.9898152]
[1732694267855,10.9266152,234.79,234.71,23.7293152]
[1732694268053,10.9266152,234.79,234.69,4.2607]
[1732694268261,10.9266152,234.79,234.66,4.2613]
[1732694268262,8.3711152,234.77,234.66,4.2613]
[1732694268739,8.3711152,234.77,234.68,8.3711152]
[1732694269263,6.3879,234.82,234.68,8.3711152]
[1732694269264,8.3711152,234.75,234.68,8.3711152]
[1732694269555,10.9270152,234.75,234.68,8.3711152]
[1732694270158,10.9270152,234.75,234.67,8.3711152]
[1732694271260,10.9270152,234.75,234.67,12.6323152]
[1732694273446,10.9270152,234.75,234.67,12.1323152]
[1732694274835,6.3879,234.82,234.67,12.1323152]
[1732694274836,20.0,234.79,234.67,12.1323152]
[1732694275047,8.3711152,234.79,234.71,8.3711152]
[1732694275960,2.5551,234.82,234.71,8.3711152]
[1732694276157,8.3711152,234.83,234.75,8.3711152]
[1732694276689,8.3711152,234.81,234.73,6.6069]
[1732694276857,8.3711152,234.81,234.73,14.9780152]
[1732694277234,8.3711152,234.79,234.71,4.2604]
[1732694277644,8.3711152,234.79,234.72,8.3711152]
[1732694277872,2.5549,234.84,234.74,8.3711152]
[1732694278039,10.9260152,234.84,234.76,12.6306152]
[1732694278239,2.5549,234.84,234.76,12.6306152]
[1732694278435,10.9260152,234.84,234.76,12.6306152]
[1732694279348,2.5545,234.88,234.78,8.3711152]
[1732694279545,8.3711152,234.87,234.78,8.3711152]
[1732694280259,8.3711152,234.87,234.79,4.2591]
[1732694280836,21.82298949,234.93,234.8,8.3711152]
[1732694281040,8.3711152,234.9,234.82,8.3711152]
[1732694281241,2.5535,234.97,234.84,8.3711152]
[1732694281446,8.3711152,234.92,234.84,8.3711152]
[1732694282749,10.9251152,234.92,234.84,8.3711152]
[1732694283548,2.5535,234.97,234.86,8.3711152]
[1732694283843,8.3711152,234.94,234.87,15.731]
[1732694284157,8.3711152,234.96,234.87,15.731]
[1732694284663,8.3711152,234.95,234.88,4.2574]
[1732694284839,8.3711152,234.95,234.88,12.6285152]
[1732694285242,8.3711152,234.95,234.88,4.2574]
[1732694285667,2.5529,235.02,234.88,4.2574]
[1732694285848,8.3711152,234.96,234.88,4.2574]
[1732694288951,8.3711152,234.98,234.89,8.3711152]
[1732694289961,8.3711152,234.98,234.91,8.3711152]
[1732694291652,39.04485029,235.08,234.91,8.3711152]
[1732694291858,8.3711152,235.02,234.93,8.3711152]
[1732694292456,8.3711152,235.0,234.93,8.3711152]
[1732694292880,8.3711152,235.0,234.93,12.6275152]
[1732694293171,8.3711152,234.96,234.87,15.731]
[1732694293564,8.3711152,234.96,234.87,24.1021152]
[1732694294069,8.3711152,234.96,234.87,28.3596152]
[1732694294655,8.3711152,234.94,234.87,19.9885]
[1732694296680,8.3711152,234.89,234.77,19.9903]
[1732694296854,8.3711152,234.85,234.77,19.9903]
[1732694298074,8.3711152,234.85,234.78,8.3711152]
[1732694298590,8.3711152,234.85,234.77,19.9903]
[1732694298751,8.3711152,234.85,234.78,8.3711152]
[1732694299278,8.3711152,234.85,234.78,12.6303152]
[1732694300858,8.3711152,234.85,234.77,19.9904]
[1732694301060,5.56111774,234.93,234.76,6.5716]
[1732694301061,8.3711152,234.81,234.76,6.5716]
[1732694304558,8.3711152,234.81,234.72,16.1183]
[1732694304777,8.3711152,234.81,234.72,20.3785]
[1732694305375,8.3711152,234.77,234.72,16.1183]
[1732694306362,8.3711152,234.77,234.7,10.8835]
[1732694307094,8.3711152,234.75,234.7,6.6229]
[1732694307384,8.3711152,234.71,234.59,23.2144]
[1732694307591,8.3711152,234.67,234.59,31.5855152]
[1732694308160,8.3711152,234.67,234.6,4.2625]
[1732694308777,8.3711152,234.67,234.59,23.2144]
[1732694308984,2.5566,234.68,234.53,23.2144]
[1732694309183,8.3711152,234.61,234.54,4.2636]
[1732694309701,8.3711152,234.63,234.55,8.3711152]
[1732694309990,5.38874901,234.63,234.55,8.3711152]
[1732694310294,13.09876928,234.64,234.56,4.2633]
[1732694311274,13.09876928,234.64,234.57,13.09876928]
[1732694311577,13.09876928,234.66,234.59,13.09876928]
[1732694313477,13.09876928,234.66,234.6,4.2625]
[1732694315803,13.09876928,234.66,234.58,4.2629]
[1732694318276,13.09876928,234.63,234.53,23.2144]
[1732694318479,13.09876928,234.63,234.54,17.36236928]
[1732694320003,13.09876928,234.61,234.54,4.2636]
[1732694323210,13.09876928,234.63,234.54,17.36236928]
[1732694323410,13.09876928,234.63,234.56,13.09876928]
[1732694324993,13.09876928,234.63,234.56,17.36186928]
[1732694328192,13.09876928,234.65,234.56,17.36186928]
[1732694328524,13.09876928,234.67,234.58,13.09876928]
[1732694330195,13.09876928,234.67,234.59,4.2627]
[1732694332300,8.3814022,234.66,234.58,8.3814022]
[1732694333615,8.3814022,234.66,234.59,4.2627]
[1732694333929,8.3814022,234.67,234.59,4.2627]
[1732694337022,20.0,234.71,234.6,8.3814022]
[1732694337199,8.3814022,234.68,234.6,8.3814022]
[1732694337719,8.3814022,234.62,234.53,23.2144]
[1732694337910,5.33192529,234.67,234.53,23.2144]
[1732694337911,8.3814022,234.58,234.53,23.2144]
[1732694338624,8.3814022,234.58,234.53,27.478]
[1732694338830,8.3814022,234.58,234.53,23.2144]
[1732694339116,8.3814022,234.6,234.53,27.4781]
[1732694340425,8.3814022,234.62,234.54,8.3814022]
[1732694340724,8.3814022,234.62,234.55,8.3814022]
[1732694342406,8.3814022,234.62,234.53,27.478]
[1732694342601,10.9387022,234.62,234.53,27.478]
[1732694342925,8.3814022,234.58,234.48,29.8878022]
[1732694343327,8.3814022,234.56,234.48,21.5064]
[1732694343533,8.3814022,234.56,234.48,29.8878022]
[1732694343825,2.5573,234.62,234.49,8.3814022]
[1732694344030,8.3814022,234.57,234.49,8.3814022]
[1732694344412,13.10688636,234.57,234.48,38.87788636]
[1732694353439,13.10688636,234.59,234.5,13.10688636]
[1732694353628,13.10688636,234.59,234.51,4.2642]
[1732694355425,13.10688636,234.59,234.52,13.10688636]
[1732694356117,13.10688636,234.59,234.49,4.2645]
[1732694356320,13.10688636,234.59,234.52,13.10688636]
[1732694356522,13.10688636,234.59,234.53,4.2638]
[1732694357340,13.10688636,234.62,234.54,13.10688636]
[1732694357516,13.10688636,234.63,234.56,13.10688636]
[1732694357825,2.5565,234.69,234.57,13.10688636]
[1732694358034,15.3979,234.71,234.6,13.10688636]
[1732694358035,13.10688636,234.68,234.6,13.10688636]
[1732694358235,13.10688636,234.69,234.61,13.10688636]
[1732694358420,13.10688636,234.7,234.62,13.10688636]
[1732694358625,13.10688636,234.71,234.63,17.36888636]
[1732694362237,13.10688636,234.71,234.61,17.36918636]
[1732694362238,13.10688636,234.69,234.61,17.36918636]
[1732694362940,13.10688636,234.69,234.61,4.2623]
[1732694363149,13.10688636,234.69,234.61,17.36918636]
[1732694364328,8.37926667,234.69,234.61,8.37926667]
[1732694365748,8.37926667,234.69,234.62,4.2622]
[1732694365944,8.37926667,234.67,234.62,4.2622]
[1732694366154,8.37926667,234.67,234.6,4.2624]
[1732694368945,8.37926667,234.67,234.58,4.2629]
[1732694369144,8.37926667,234.65,234.57,25.758]
[1732694370662,8.37926667,234.63,234.57,25.758]
[1732694371248,2.5567,234.67,234.57,25.758]
[1732694371435,8.37926667,234.64,234.57,25.758]
[1732694373642,8.37926667,234.62,234.57,21.495]
[1732694373842,8.37926667,234.6,234.52,29.87426667]
[1732694374361,8.37926667,234.6,234.53,4.2638]
[1732694377325,20.0,234.66,234.53,4.2638]
[1732694377528,8.37926667,234.61,234.53,4.2638]
[1732694377738,2.5567,234.67,234.53,4.2638]
[1732694378059,8.37926667,234.62,234.53,4.2638]
[1732694385430,8.37926667,234.62,234.54,8.37926667]
[1732694385630,8.37926667,234.62,234.55,4.2634]
[1732694385962,2.5572,234.63,234.55,4.2634]
[1732694386160,8.37926667,234.62,234.55,4.2634]
[1732694387633,26.3918,234.68,234.55,4.2634]
[1732694387839,8.37926667,234.62,234.55,4.2634]
[1732694389160,26.3918,234.68,234.55,4.2634]
[1732694389161,8.37926667,234.66,234.56,8.37926667]
[1732694390873,10.93606667,234.66,234.57,4.2631]
[1732694392468,10.93606667,234.66,234.52,21.495]
[1732694392649,10.93606667,234.66,234.56,8.37926667]
[1732694393755,8.37926667,234.66,234.56,8.37926667]
[1732694394061,10.93616667,234.66,234.56,8.37926667]
[1732694394274,8.37926667,234.64,234.53,14.9234]
[1732694394572,8.37926667,234.64,234.54,8.37926667]
[1732694395670,8.37926667,234.64,234.55,4.2634]
[1732694397657,8.37926667,234.64,234.56,8.37926667]
[1732694398371,10.93626667,234.65,234.56,8.37926667]
[1732694398550,10.93626667,234.65,234.57,4.2631]
[1732694399169,10.93626667,234.65,234.56,4.2632]
[1732694399482,8.37926667,234.62,234.56,4.2632]
[1732694400468,2.5571,234.64,234.53,4.2638]
[1732694400685,2.5567,234.67,234.53,4.2638]
[1732694400999,10.93596667,234.67,234.53,4.2638]
[1732694401155,10.93596667,234.67,234.6,8.37926667]
[1732694401558,10.93596667,234.67,234.53,14.9234]
[1732694401787,10.93596667,234.67,234.57,8.37926667]
[1732694402176,10.93596667,234.67,234.58,4.2629]
[1732694402689,20.0,234.64,234.54,4.2636]
[1732694403066,20.0,234.64,234.55,8.37926667]
[1732694403261,22.5567,234.67,234.55,8.37926667]
[1732694403464,8.37926667,234.64,234.55,8.37926667]
[1732694403686,8.37926667,234.62,234.54,12.64286667]
[1732694404364,20.0,234.64,234.54,12.64286667]
[1732694404567,8.37926667,234.62,234.54,12.64286667]
[1732694404885,8.37926667,234.6,234.54,4.2636]
[1732694405270,8.37926667,234.6,234.53,4.2638]
[1732694405490,8.37926667,234.62,234.54,8.37926667]
[1732694405793,8.9479,234.69,234.54,8.37926667]
[1732694405956,8.37926667,234.59,234.53,4.2638]
[1732694406160,8.37926667,234.57,234.52,21.495]
[1732694406763,8.37926667,234.53,234.47,16.2887]
[1732694406973,8.37926667,234.51,234.47,16.2887]
[1732694407181,10.93776667,234.51,234.47,16.2887]
[1732694407364,8.37926667,234.49,234.47,16.2887]
[1732694407565,8.37926667,234.49,234.42,0.5067034]
[1732694407767,8.37926667,234.47,234.42,0.5067034]
[1732694408361,2.5585,234.51,234.42,0.5067034]
[1732694408362,8.37926667,234.46,234.42,0.5067034]
[1732694408564,8.37926667,234.44,234.42,0.5067034]
[1732694409270,20.0,234.48,234.42,0.5067034]
[1732694409465,28.37926667,234.48,234.42,0.5067034]
[1732694409660,20.0,234.48,234.42,0.5067034]
[1732694409865,28.37926667,234.48,234.42,0.5067034]
[1732694410062,8.37926667,234.47,234.42,0.5067034]
[1732694410389,15.8995,234.52,234.42,0.5067034]
[1732694410390,20.0,234.54,234.44,8.37926667]
[1732694410687,8.37926667,234.51,234.43,8.37926667]
[1732694411074,8.37926667,234.5,234.43,8.37926667]
[1732694412087,2.5584,234.52,234.44,8.37926667]
[1732694412284,8.37926667,234.52,234.44,8.37926667]
[1732694413595,8.37926667,234.53,234.45,8.37926667]
[1732694414697,8.37926667,234.5,234.44,10.5328]
[1732694414899,8.37926667,234.5,234.42,0.5067034]
[1732694415076,8.37926667,234.48,234.42,0.5067034]
[1732694415277,2.5583,234.53,234.42,0.5067034]
[1732694415477,8.37926667,234.46,234.42,0.5067034]
[1732694418992,10.93826667,234.46,234.42,0.5067034]
[1732694419895,20.0,234.52,234.42,0.5067034]
[1732694420097,8.37926667,234.47,234.42,0.5067034]
[1732694421775,2.5582,234.54,234.43,8.37926667]
[1732694422076,8.37926667,234.51,234.43,8.37926667]
[1732694423208,21.64385109,234.55,234.42,4.7725034]
[1732694423209,8.37926667,234.52,234.42,15.4371034]
[1732694423413,8.37926667,234.52,234.43,8.37926667]
[1732694423909,8.37926667,234.52,234.44,4.2654]
[1732694424078,8.37926667,234.5,234.42,0.5067034]
[1732694424479,8.37926667,234.48,234.42,0.5067034]
[1732694426017,8.37926667,234.46,234.42,0.5067034]
[1732694427218,8.37926667,234.48,234.42,0.5067034]
[1732694428111,8.37926667,234.48,234.42,4.7725034]
[1732694428289,8.37926667,234.48,234.42,0.5067034]
[1732694430806,10.93806667,234.48,234.42,0.5067034]
[1732694430983,8.37926667,234.48,234.42,0.5067034]
[1732694431903,28.37926667,234.5,234.42,4.7725034]
[1732694432077,20.0,234.5,234.42,4.7725034]
[1732694432508,20.0,234.5,234.43,8.37926667]
[1732694432808,20.0,234.5,234.43,4.2654]
[1732694434384,2.5578,234.57,234.46,8.37926667]
[1732694434709,8.37926667,234.55,234.46,8.37926667]
[1732694435401,36.07466668,234.6,234.46,8.37926667]
[1732694435604,8.37926667,234.56,234.48,8.37926667]
[1732694435912,8.37926667,234.58,234.5,8.37926667]
[1732694436078,8.37926667,234.56,234.48,8.37926667]
[1732694436486,8.37926667,234.56,234.49,4.2645]
[1732694437492,8.37926667,234.58,234.5,8.37926667]
[1732694438500,8.37926667,234.58,234.51,4.2642]
[1732694440903,8.37926667,234.56,234.49,8.37926667]
[1732694441094,8.37926667,234.54,234.46,4.2651]
[1732694441300,8.37926667,234.52,234.46,4.2651]
[1732694441499,20.0,234.57,234.46,12.64436667]
[1732694441705,8.37926667,234.55,234.48,8.37926667]
[1732694442895,8.37926667,234.55,234.48,12.64386667]
[1732694444113,8.37926667,234.55,234.48,4.2646]
[1732694444694,10.93736667,234.55,234.46,4.2649]
[1732694445131,8.37926667,234.55,234.46,4.2649]
[1732694445495,10.93726667,234.55,234.46,4.2649]
[1732694445803,8.37926667,234.53,234.46,4.2649]
[1732694447121,10.93756667,234.53,234.45,18.79276667]
[1732694447819,10.93756667,234.53,234.45,14.52756667]
[1732694448296,8.37926667,234.51,234.45,6.1483]
[1732694449798,8.37926667,234.49,234.42,0.5067034]
[1732694450619,8.954,234.53,234.42,0.5067034]
[1732694450620,8.37926667,234.47,234.42,0.5067034]
[1732694451392,2.5578,234.57,234.45,8.37926667]
[1732694451591,8.37926667,234.53,234.45,8.37926667]
[1732694452203,8.37926667,234.51,234.43,8.37926667]
[1732694452402,8.37926667,234.51,234.43,12.64476667]
[1732694454003,10.93776667,234.51,234.43,12.64476667]
[1732694454225,8.37926667,234.49,234.42,0.5067034]
[1732694454802,2.5585,234.51,234.42,4.7725034]
[1732694455002,8.37926667,234.5,234.42,4.7725034]
[1732694457701,10.93796667,234.5,234.42,4.7725034]
[1732694459774,8.37926667,234.5,234.42,4.7725034]
[1732694460821,10.93786667,234.5,234.42,4.7725034]
[1732694461627,8.37926667,234.48,234.42,0.5067034]
[1732694462046,8.37926667,234.45,234.42,0.5067034]
[1732694463420,20.0,234.43,234.42,0.5067034]
[1732694463628,30.93856667,234.43,234.42,0.5067034]
[1732694466571,20.0,234.43,234.42,0.5067034]
[1732694466730,20.0,234.47,234.42,0.5067034]
[1732694466944,10.93796667,234.5,234.43,8.37926667]
[1732694467147,10.93796667,234.5,234.42,0.5067034]
[1732694467148,2.5587,234.5,234.44,8.37926667]
[1732694467336,8.37926667,234.51,234.44,8.37926667]
[1732694467542,8.37926667,234.49,234.42,0.5067034]
[1732694467851,2.5585,234.52,234.42,0.5067034]
[1732694468055,8.37926667,234.47,234.42,0.5067034]
[1732694468256,2.5585,234.52,234.42,0.5067034]
[1732694468540,8.37926667,234.48,234.42,0.5067034]
[1732694469035,28.37926667,234.45,234.42,0.5067034]
[1732694469334,20.0,234.45,234.42,0.5067034]
[1732694469537,8.37926667,234.43,234.27,8.37926667]
[1732694469740,22.6238,234.44,234.29,8.37926667]
[1732694469741,8.37926667,234.38,234.29,8.37926667]
[1732694469950,8.37926667,234.4,234.31,8.37926667]
[1732694470135,20.0,234.37,234.31,8.37926667]
[1732694470458,20.0,234.37,234.31,12.64696667]
[1732694470852,20.0,234.37,234.33,8.37926667]
[1732694471265,6.5347,234.49,234.33,8.37926667]
[1732694471563,20.0,234.4,234.35,8.37926667]
[1732694472139,20.0,234.42,234.37,8.37926667]
[1732694472351,8.37926667,234.46,234.37,8.37926667]
[1732694472656,8.37926667,234.46,234.38,4.2665]
[1732694474550,8.37926667,234.42,234.33,4.2674]
[1732694474774,2.5586,234.5,234.36,8.37926667]
[1732694474775,8.37926667,234.46,234.36,8.37926667]